fUSD/lending_fUSD_20241223
["ID","MTS","AMOUNT","RATE_DAILY","PERIOD"]
[346374714,1734921038425,-250.0,0.00018662,2]
[346374715,1734921038435,-250.0,0.00018796,2]
[346374716,1734921038446,-551.2,0.00018841,2]
[346374717,1734921038456,-940.62083203,0.00018853,2]
[346374718,1734921038468,-2762.95916797,0.00018853,2]
[346374719,1734921038478,-200.54,0.00018909,2]
[346374720,1734921038487,-1000.0,0.00018948,2]
[346374721,1734921038498,-250.0,0.00018973,2]
[346374722,1734921038508,-294.79,0.00019,2]
[346374723,1734921038518,-746.46488378,0.00019,2]
[346374724,1734921038528,-742.26,0.00019073,2]
[346374725,1734921038537,-493.42,0.00019085,2]
[346374726,1734921038546,-150.99,0.00019085,2]
[346374727,1734921038559,-261.99,0.00019085,2]
[346374728,1734921038568,-999.99,0.00019085,2]
[346374729,1734921038578,-150.99,0.00019085,2]
[346374730,1734921038591,-9546.42,0.00019085,2]
[346374731,1734921038601,-743.9,0.00019088,2]
[346374732,1734921038610,-2635.56,0.00019088,5]
[346374733,1734921038620,-508.61,0.00019088,2]
[346374734,1734921038634,-200.0,0.00019445,2]
[346374735,1734921038644,-200.0,0.00019454,2]
[346374736,1734921038654,-200.0,0.00019455,2]
[346374737,1734921038664,-200.0,0.00019462,2]
[346374738,1734921038673,-200.0,0.0001949,2]
[346374739,1734921038683,-500.0,0.00019499,2]
[346374740,1734921038692,-500.0,0.00019499,2]
[346374741,1734921038701,-500.0,0.00019499,2]
[346374742,1734921038711,-500.0,0.00019499,2]
[346374743,1734921038721,-500.0,0.00019499,2]
[346374744,1734921038731,-374.52559088,0.00019499,2]
[346374745,1734921038740,-500.0,0.00019499,2]
[346374746,1734921038749,-528.75377889,0.00019499,2]
[346374747,1734921038758,-500.0,0.00019499,2]
[346374748,1734921038768,-500.0,0.00019499,2]
[346374749,1734921038778,-549.03,0.00019499,2]
[346374750,1734921038787,-500.0,0.00019499,2]
[346374751,1734921038797,-164.98761189,0.00019499,2]
[346374752,1734921038806,-500.0,0.00019499,2]
[346374753,1734921038815,-500.0,0.00019499,2]
[346374754,1734921038826,-480.0,0.00019499,2]
[346374755,1734921038838,-460.0,0.00019499,2]
[346374757,1734921038848,-500.0,0.00019499,2]
[346374758,1734921038858,-588.12,0.00019499,2]
[346374760,1734921038867,-500.0,0.00019499,2]
[346374762,1734921038877,-500.0,0.00019499,2]
[346374764,1734921038887,-500.0,0.00019499,2]
[346374766,1734921038896,-500.0,0.00019499,2]
[346374769,1734921038906,-512.37154566,0.00019499,2]
[346374771,1734921038915,-500.0,0.00019499,2]
[346374772,1734921038925,-500.0,0.00019499,2]
[346374775,1734921038935,-500.0,0.00019499,2]
[346374777,1734921038944,-500.0,0.00019499,2]
[346374779,1734921038954,-530.12,0.00019499,2]
[346374781,1734921038964,-500.0,0.00019499,2]
[346374782,1734921038974,-500.0,0.00019499,2]
[346374783,1734921038984,-559.15,0.00019499,2]
[346374784,1734921038993,-500.0,0.00019499,2]
[346374785,1734921039003,-535.88,0.00019499,2]
[346374786,1734921039012,-516.45846713,0.00019499,2]
[346374787,1734921039021,-500.0,0.00019499,2]
[346374788,1734921039030,-500.0,0.00019499,2]
[346374789,1734921039040,-500.0,0.00019499,2]
[346374790,1734921039050,-500.0,0.00019499,2]
[346374791,1734921039059,-500.0,0.00019499,2]
[346374792,1734921039070,-500.0,0.00019499,2]
[346374793,1734921039080,-510.89589709,0.00019499,2]
[346374794,1734921039094,-500.0,0.00019499,2]
[346374795,1734921039104,-500.0,0.00019499,2]
[346374796,1734921039114,-513.48983083,0.00019499,2]
[346374797,1734921039124,-500.0,0.00019499,2]
[346374799,1734921039133,-152.0,0.00019513,3]
[346374801,1734921039144,-1312.1239,0.00019573,2]
[346374804,1734921039154,-1000.0,0.00019573,2]
[346374805,1734921039163,-1067.53103271,0.000196,2]
[346374808,1734921039173,-11498.89812281,0.00019726,2]
[346374810,1734921039183,-500.0,0.00019772,2]
[346374811,1734921039192,-500.0,0.00019772,2]
[346374812,1734921039202,-500.0,0.00019772,2]
[346374813,1734921039211,-514.74198701,0.00019772,2]
[346374814,1734921039221,-587.0,0.00019772,2]
[346374815,1734921039230,-594.68,0.00019772,2]
[346374816,1734921039239,-518.80053484,0.00019772,2]
[346374817,1734921039248,-1042.3,0.00019772,2]
[346374818,1734921039257,-2803.34,0.00019772,2]
[346374819,1734921039266,-500.0,0.00019772,2]
[346374820,1734921039275,-702.22,0.00019772,2]
[346374821,1734921039285,-500.0,0.00019772,2]
[346374822,1734921039294,-1068.5,0.00019772,2]
[346374823,1734921039304,-1215.41,0.00019772,2]
[346374824,1734921039313,-500.0,0.00019772,2]
[346374825,1734921039322,-500.0,0.00019772,2]
[346374826,1734921039331,-500.0,0.00019772,2]
[346374827,1734921039342,-834.92,0.00019772,2]
[346374828,1734921039351,-3080.57,0.00019772,2]
[346374829,1734921039361,-500.0,0.00019772,2]
[346374830,1734921039370,-510.29726184,0.00019772,2]
[346374831,1734921039380,-500.0,0.00019772,2]
[346374832,1734921039389,-500.0,0.00019772,2]
[346374833,1734921039399,-353.82137968,0.00019772,2]
[346374834,1734921039408,-516.62981756,0.00019772,2]
[346374835,1734921039417,-516.57006274,0.00019772,2]
[346374836,1734921039426,-515.39924789,0.00019772,2]
[346374837,1734921039435,-549.49,0.00019772,2]
[346374838,1734921039446,-500.0,0.00019772,2]
[346374839,1734921039455,-515.57850636,0.00019772,2]
[346374840,1734921039465,-500.0,0.00019772,2]
[346374841,1734921039474,-788.65,0.00019772,2]
[346374842,1734921039483,-500.0,0.00019773,2]
[346374843,1734921039492,-500.0,0.00019773,2]
[346374844,1734921039502,-500.0,0.00019773,2]
[346374845,1734921039511,-500.0,0.00019773,2]
[346374846,1734921039521,-485.0,0.00019773,2]
[346374847,1734921039530,-500.0,0.00019773,2]
[346374848,1734921039539,-500.0,0.00019773,2]
[346374849,1734921039551,-549.03,0.00019773,2]
[346374850,1734921039560,-500.0,0.00019773,2]
[346374851,1734921039570,-500.0,0.00019773,2]
[346374852,1734921039579,-500.0,0.00019773,2]
[346374853,1734921039591,-500.0,0.00019773,2]
[346374854,1734921039600,-500.0,0.00019773,2]
[346374855,1734921039610,-500.0,0.00019773,2]
[346374856,1734921039619,-500.0,0.00019773,2]
[346374857,1734921039629,-500.0,0.00019773,2]
[346374858,1734921039639,-500.0,0.00019773,2]
[346374859,1734921039648,-500.0,0.00019773,2]
[346374860,1734921039658,-500.0,0.00019773,2]
[346374861,1734921039667,-530.12,0.00019773,2]
[346374862,1734921039677,-500.0,0.00019773,2]
[346374863,1734921039689,-500.0,0.00019773,2]
[346374864,1734921039699,-559.15,0.00019773,2]
[346374865,1734921039708,-500.0,0.00019773,2]
[346374866,1734921039718,-535.88,0.00019773,2]
[346374867,1734921039727,-500.0,0.00019773,2]
[346374868,1734921039737,-500.0,0.00019773,2]
[346374869,1734921039746,-500.0,0.00019773,2]
[346374870,1734921039757,-223.31932752,0.00019773,2]
[346374871,1734921039767,-300.0,0.000198,2]
[346374872,1734921039776,-178.91146434,0.00019824,2]
[346374873,1734921039787,-289.0,0.00019836,2]
[346374874,1734921039800,-500.0,0.0001984,2]
[346374875,1734921039812,-4000.0,0.0001985,2]
[346374876,1734921039822,-171.91732127,0.00019889,2]
[346374877,1734921039831,-1000.0,0.0001989,2]
[346374878,1734921039844,-171.91732127,0.00019891,2]
[346374879,1734921039853,-171.91732127,0.00019893,2]
[346374880,1734921039863,-171.91732127,0.00019896,2]
[346374881,1734921039873,-171.91732127,0.00019898,2]
[346374882,1734921039883,-940.476,0.00019898,2]
[346374883,1734921039894,-171.91732127,0.000199,2]
[346374884,1734921039904,-1460.027,0.00019945,2]
[346374885,1734921039914,-3178.62733878,0.00019945,2]
[346374886,1734921039929,-591.37266122,0.00019945,2]
[346374887,1734921039939,-1252.824,0.00019945,2]
[346374888,1734921039949,-502.87579782,0.00019945,2]
[346374889,1734921039974,-315.12420218,0.00019945,2]
[346374890,1734921039985,-536.0,0.00019945,2]
[346374891,1734921039996,-3682.0,0.00019945,2]
[346374892,1734921040007,-1265.0,0.00019945,2]
[346374893,1734921040018,-635.0,0.00019945,2]
[346374894,1734921040029,-150.0,0.00019945,2]
[346374895,1734921040040,-2011.0,0.00019945,2]
[346374896,1734921040051,-2982.9332616,0.00019945,2]
[346374897,1734921040093,-904.0667384,0.00019945,2]
[346374898,1734921040103,-9652.373,0.00019945,2]
[346374899,1734921040113,-4000.0,0.0001995,2]
[346374900,1734921040123,-4000.0,0.0001998,2]
[346374901,1734921040132,-180.0,0.00019986,2]
[346374902,1734921040141,-180.0,0.00019986,2]
[346374903,1734921040151,-180.93,0.00019986,2]
[346374904,1734921040160,-150.0,0.00019987,2]
[346374905,1734921040170,-500.0,0.00019989,2]
[346374906,1734921040179,-500.0,0.00019989,2]
[346374907,1734921040188,-315.04340927,0.00019989,2]
[346374908,1734921040198,-500.0,0.00019989,2]
[346374909,1734921040207,-500.0,0.00019989,2]
[346374910,1734921040217,-500.0,0.00019989,2]
[346374911,1734921040226,-500.0,0.00019989,2]
[346374912,1734921040235,-499.85773981,0.00019989,2]
[346374913,1734921040245,-500.0,0.00019989,2]
[346374914,1734921040254,-173.32400756,0.00019989,2]
[346374915,1734921040263,-619352.0,0.0001999,2]
[346374916,1734921040273,-52739.60756904,0.0001999,2]
[346374917,1734921040282,-259.0,0.0001999,2]
[346374918,1734921040291,-153.0,0.00019992,2]
[346374919,1734921040301,-153.0,0.00019992,2]
[346374920,1734921040311,-153.0,0.00019992,2]
[346374921,1734921040321,-153.0,0.00019992,2]
[346374922,1734921040330,-153.0,0.00019992,2]
[346374923,1734921040346,-153.0,0.00019992,2]
[346374924,1734921040356,-153.0,0.00019992,2]
[346374925,1734921040366,-153.0,0.00019992,2]
[346374926,1734921040376,-153.0,0.00019992,2]
[346374927,1734921040388,-153.0,0.00019992,2]
[346374928,1734921040400,-153.0,0.00019992,2]
[346374929,1734921040409,-153.0,0.00019992,2]
[346374930,1734921040420,-153.0,0.00019992,2]
[346374931,1734921040430,-153.0,0.00019992,2]
[346374932,1734921040440,-153.0,0.00019992,2]
[346374933,1734921040451,-153.0,0.00019992,2]
[346374934,1734921040462,-153.0,0.00019992,2]
[346374935,1734921040472,-153.0,0.00019992,2]
[346374936,1734921040483,-153.0,0.00019992,2]
[346374937,1734921040494,-153.0,0.00019992,2]
[346374938,1734921040505,-153.0,0.00019992,2]
[346374939,1734921040516,-153.0,0.00019992,2]
[346374940,1734921040527,-153.0,0.00019993,2]
[346374941,1734921040538,-153.0,0.00019993,2]
[346374942,1734921040550,-153.0,0.00019993,2]
[346374943,1734921040565,-153.0,0.00019993,2]
[346374944,1734921040576,-153.0,0.00019993,2]
[346374945,1734921040591,-444.122311,0.00019994,3]
[346374946,1734921040604,-444.122311,0.00019994,3]
[346374947,1734921040615,-444.122311,0.00019994,3]
[346374948,1734921040628,-444.122311,0.00019995,2]
[346374949,1734921040640,-444.122311,0.00019995,2]
[346374950,1734921040651,-444.122311,0.00019995,2]
[346374951,1734921040662,-444.122311,0.00019995,2]
[346374952,1734921040673,-444.122311,0.00019995,2]
[346374953,1734921040684,-444.122311,0.00019995,3]
[346374954,1734921040903,-444.122311,0.00019995,3]
[346374955,1734921040914,-444.122311,0.00019995,3]
[346374956,1734921040924,-444.122311,0.00019995,3]
[346374957,1734921040935,-444.122311,0.00019995,3]
[346374958,1734921040945,-444.122311,0.00019996,3]
[346374959,1734921040955,-444.122311,0.00019996,3]
[346374960,1734921040964,-444.122311,0.00019996,3]
[346374961,1734921040974,-444.122311,0.00019996,3]
[346374962,1734921040984,-444.122311,0.00019996,3]
[346374963,1734921040994,-444.122311,0.00019996,2]
[346374964,1734921041004,-444.122311,0.00019996,2]
[346374965,1734921041015,-444.122311,0.00019996,2]
[346374966,1734921041025,-444.122311,0.00019996,2]
[346374967,1734921041038,-2304.4023284,0.00019996,2]
[346374968,1734921041047,-1973.1352672,0.00019996,2]
[346374969,1734921041057,-1641.868206,0.00019996,2]
[346374970,1734921041066,-1310.6011449,0.00019996,2]
[346374972,1734921041076,-979.3340837,0.00019996,2]
[346374974,1734921041085,-648.0670225,0.00019996,2]
[346374976,1734921041097,-699.22714204,0.00019996,2]
[346374978,1734921041107,-571.8837042,0.00019996,2]
[346374980,1734921041116,-489.673132,0.00019996,2]
[346374982,1734921041126,-407.4625598,0.00019996,2]
[346374984,1734921041135,-325.2519876,0.00019996,2]
[346374985,1734921041144,-243.0414153,0.00019996,2]
[346374986,1734921041153,-160.8308431,0.00019996,2]
[346374987,1734921041162,-2346.7453584,0.00019996,2]
[346374988,1734921041172,-2009.3913171,0.00019996,2]
[346374989,1734921041181,-1672.0372759,0.00019996,2]
[346374990,1734921041191,-1334.6832346,0.00019996,2]
[346374991,1734921041200,-997.3291933,0.00019996,2]
[346374992,1734921041210,-659.975152,0.00019996,2]
[346374993,1734921041219,-444.122311,0.00019997,2]
[346374994,1734921041229,-444.122311,0.00019997,2]
[346374995,1734921041239,-444.122311,0.00019997,2]
[346374996,1734921041248,-444.122311,0.00019997,2]
[346374997,1734921041258,-444.122311,0.00019997,2]
[346374998,1734921041266,-444.122311,0.00019997,3]
[346374999,1734921041276,-444.122311,0.00019997,3]
[346375000,1734921041285,-444.122311,0.00019997,3]
[346375001,1734921041295,-444.122311,0.00019997,3]
[346375002,1734921041304,-444.122311,0.00019997,3]
[346375003,1734921041315,-170269.60417709,0.00019997,2]
[346375004,1734921041324,-444.122311,0.00019998,3]
[346375005,1734921041334,-444.122311,0.00019998,3]
[346375006,1734921041347,-444.122311,0.00019998,3]
[346375007,1734921041357,-444.122311,0.00019998,3]
[346375008,1734921041367,-444.122311,0.00019998,3]
[346375009,1734921041377,-444.122311,0.00019998,2]
[346375010,1734921041388,-444.122311,0.00019998,2]
[346375011,1734921041398,-444.122311,0.00019998,2]
[346375012,1734921041408,-444.122311,0.00019998,2]
[346375013,1734921041418,-444.122311,0.00019998,2]
[346375014,1734921041429,-1257.0,0.00019999,2]
[346375015,1734921041439,-666.0,0.00019999,2]
[346375016,1734921041450,-300.0,0.00019999,2]
[346375017,1734921041460,-300.0,0.00019999,2]
[346375018,1734921041470,-666.0,0.00019999,2]
[346375019,1734921041481,-113335.65809055,0.00019999,2]
[346375020,1734921041491,-500.0,0.00019999,2]
[346375021,1734921041501,-212.71319707,0.00019999,2]
[346375022,1734921041511,-1414.392083,0.00019999,2]
[346375023,1734921041521,-159.297645,0.00019999,2]
[346375024,1734921041532,-1160.181753,0.00019999,2]
[346375025,1734921041544,-444.122311,0.00019999,2]
[346375026,1734921041558,-444.122311,0.00019999,2]
[346375027,1734921041569,-444.122311,0.00019999,2]
[346375028,1734921041579,-444.122311,0.00019999,2]
[346375029,1734921041594,-444.122311,0.00019999,2]
[346375030,1734921041605,-444.122311,0.00019999,2]
[346375031,1734921041615,-444.122311,0.00019999,2]
[346375032,1734921041625,-444.122311,0.00019999,2]
[346375033,1734921041635,-444.122311,0.00019999,2]
[346375034,1734921041645,-444.122311,0.00019999,2]
[346375035,1734921041655,-444.122311,0.00019999,3]
[346375036,1734921041664,-444.122311,0.00019999,3]
[346375037,1734921041674,-444.122311,0.00019999,3]
[346375038,1734921041683,-444.122311,0.00019999,3]
[346375039,1734921041693,-444.122311,0.00019999,3]
[346375040,1734921041703,-444.122311,0.00019999,3]
[346375041,1734921041712,-444.122311,0.00019999,3]
[346375042,1734921041722,-444.122311,0.00019999,3]
[346375043,1734921041732,-444.122311,0.00019999,3]
[346375044,1734921041742,-500.0,0.00019999,2]
[346375045,1734921041752,-500.0,0.00019999,2]
[346375046,1734921041762,-500.0,0.00019999,2]
[346375047,1734921041773,-500.0,0.00019999,2]
[346375048,1734921041782,-504.67001105,0.00019999,2]
[346375049,1734921041792,-175.03543143,0.00019999,2]
[346375050,1734921041802,-500.0,0.00019999,2]
[346375051,1734921041812,-506.67774681,0.00019999,2]
[346375052,1734921041822,-508.60397802,0.00019999,2]
[346375053,1734921041831,-506.62366418,0.00019999,2]
[346375054,1734921041845,-481.34402524,0.00019999,2]
[346375055,1734921041855,-1000.0,0.00019999,2]
[346375056,1734921041864,-427.65845895,0.00019999,2]
[346375057,1734921041874,-351.41841479,0.00019999,2]
[346375058,1734921041883,-500.0,0.00019999,2]
[346375059,1734921041893,-503.04146051,0.00019999,2]
[346375060,1734921041903,-515.99402289,0.00019999,2]
[346375061,1734921041912,-522.85540239,0.00019999,2]
[346375062,1734921041922,-505.93436737,0.00019999,2]
[346375063,1734921041931,-516.84956833,0.00019999,2]
[346375064,1734921041940,-500.0,0.00019999,2]
[346375065,1734921041950,-163.2295204,0.00019999,2]
[346375066,1734921041959,-682.64,0.00019999,2]
[346375067,1734921041968,-264.213221,0.00019999,2]
[346375068,1734921041977,-531.98,0.00019999,2]
[346375069,1734921041986,-500.0,0.00019999,2]
[346375070,1734921041996,-500.0,0.00019999,2]
[346375071,1734921042005,-500.0,0.00019999,2]
[346375072,1734921042015,-439.34498112,0.00019999,2]
[346375073,1734921042024,-500.0,0.00019999,2]
[346375074,1734921042033,-500.0,0.00019999,2]
[346375075,1734921042043,-585.91,0.00019999,2]
[346375076,1734921042052,-507.06,0.00019999,2]
[346375077,1734921042061,-500.0,0.00019999,2]
[346375078,1734921042070,-687.57,0.00019999,2]
[346375079,1734921042079,-500.0,0.00019999,2]
[346375080,1734921042091,-500.0,0.00019999,2]
[346375081,1734921042100,-500.0,0.00019999,2]
[346375082,1734921042109,-510.6,0.00019999,2]
[346375083,1734921042118,-500.0,0.00019999,2]
[346375084,1734921042127,-500.0,0.00019999,2]
[346375085,1734921042137,-539.99,0.00019999,2]
[346375086,1734921042146,-500.0,0.00019999,2]
[346375087,1734921042155,-500.0,0.00019999,2]
[346375088,1734921042164,-500.0,0.00019999,2]
[346375089,1734921042173,-513.54388856,0.00019999,2]
[346375090,1734921042182,-500.0,0.00019999,2]
[346375091,1734921042191,-517.74948883,0.00019999,2]
[346375092,1734921042201,-500.0,0.00019999,2]
[346375093,1734921042210,-516.15819942,0.00019999,2]
[346375094,1734921042219,-500.0,0.00019999,2]
[346375095,1734921042228,-500.0,0.00019999,2]
[346375096,1734921042239,-514.44459716,0.00019999,2]
[346375097,1734921042248,-500.0,0.00019999,2]
[346375099,1734921042257,-500.0,0.00019999,2]
[346375100,1734921042267,-500.0,0.00019999,2]
[346375103,1734921042276,-514.28643443,0.00019999,2]
[346375104,1734921042285,-521.53125304,0.00019999,2]
[346375106,1734921042294,-506.81609514,0.00019999,2]
[346375108,1734921042303,-500.0,0.00019999,2]
[346375110,1734921042313,-514.99286092,0.00019999,2]
[346375113,1734921042323,-548.85,0.00019999,2]
[346375114,1734921042332,-505.7384103,0.00019999,2]
[346375117,1734921042343,-500.0,0.00019999,2]
[346375119,1734921042352,-503.87306982,0.00019999,2]
[346375121,1734921042361,-468.00502092,0.00019999,2]
[346375123,1734921042371,-500.0,0.00019999,2]
[346375125,1734921042380,-506.17342337,0.00019999,2]
[346375127,1734921042390,-500.0,0.00019999,2]
[346375128,1734921042398,-500.0,0.00019999,2]
[346375130,1734921042408,-502.84958028,0.00019999,2]
[346375148,1734921042566,-500.0,0.00019999,2]
[346375149,1734921042603,-511.66770122,0.00019999,2]
[346375150,1734921042613,-500.0,0.00019999,2]
[346375151,1734921042623,-520.59682249,0.00019999,2]
[346375152,1734921042635,-503.72844406,0.00019999,2]
[346375153,1734921042644,-506.46872731,0.00019999,2]
[346375154,1734921042654,-513.42561182,0.00019999,2]
[346375155,1734921042664,-505.11798085,0.00019999,2]
[346375156,1734921042674,-500.0,0.00019999,2]
[346375157,1734921042684,-4062.36,0.00019999,2]
[346375158,1734921042694,-510.31509452,0.00019999,2]
[346375159,1734921042704,-500.0,0.00019999,2]
[346375160,1734921042714,-514.8701867,0.00019999,2]
[346375161,1734921042725,-500.0,0.00019999,2]
[346375162,1734921042735,-1448.02,0.00019999,2]
[346375163,1734921042746,-501.7647614,0.00019999,2]
[346375164,1734921042755,-508.80129322,0.00019999,2]
[346375165,1734921042766,-504.07609417,0.00019999,2]
[346375166,1734921042776,-500.0,0.00019999,2]
[346375167,1734921042785,-500.0,0.00019999,2]
[346375168,1734921042795,-507.79981499,0.00019999,2]
[346375169,1734921042805,-1879.43,0.00019999,2]
[346375170,1734921042816,-500.0,0.00019999,2]
[346375171,1734921042826,-509.68161492,0.00019999,2]
[346375172,1734921042835,-702.39,0.00019999,2]
[346375173,1734921042846,-500.0,0.00019999,2]
[346375174,1734921042856,-500.0,0.00019999,2]
[346375175,1734921042865,-540.89,0.00019999,2]
[346375176,1734921042875,-9213.77,0.00019999,2]
[346375177,1734921042884,-500.0,0.00019999,2]
[346375178,1734921042894,-752.01,0.00019999,2]
[346375179,1734921042904,-519.37,0.00019999,2]
[346375180,1734921042914,-502.6933383,0.00019999,2]
[346375181,1734921042924,-505.03259398,0.00019999,2]
[346375182,1734921042934,-500.0,0.00019999,2]
[346375183,1734921042944,-508.24411518,0.00019999,2]
[346375184,1734921042954,-506.13907165,0.00019999,2]
[346375185,1734921042964,-1099.11,0.00019999,2]
[346375186,1734921042974,-500.0,0.00019999,2]
[346375187,1734921042984,-791.33,0.00019999,2]
[346375188,1734921042993,-500.0,0.00019999,2]
[346375189,1734921043003,-791.33,0.00019999,2]
[346375190,1734921043013,-511.6670784,0.00019999,2]
[346375191,1734921043023,-791.33,0.00019999,2]
[346375192,1734921043034,-791.33,0.00019999,2]
[346375193,1734921043043,-791.33,0.00019999,2]
[346375194,1734921043053,-791.33,0.00019999,2]
[346375195,1734921043062,-507.68039408,0.00019999,2]
[346375196,1734921043072,-791.33,0.00019999,2]
[346375197,1734921043083,-791.33,0.00019999,2]
[346375198,1734921043105,-791.33,0.00019999,2]
[346375199,1734921043116,-791.33,0.00019999,2]
[346375200,1734921043127,-791.33,0.00019999,2]
[346375201,1734921043137,-791.33,0.00019999,2]
[346375203,1734921043147,-791.33,0.00019999,2]
[346375205,1734921043157,-504.29051318,0.00019999,2]
[346375207,1734921043167,-791.33,0.00019999,2]
[346375208,1734921043177,-791.33,0.00019999,2]
[346375209,1734921043187,-791.33,0.00019999,2]
[346375210,1734921043197,-791.33,0.00019999,2]
[346375211,1734921043206,-500.0,0.00019999,2]
[346375212,1734921043216,-722.8,0.00019999,2]
[346375213,1734921043226,-501.62737106,0.00019999,2]
[346375214,1734921043236,-791.33,0.00019999,2]
[346375215,1734921043246,-791.33,0.00019999,2]
[346375216,1734921043255,-662.61,0.00019999,2]
[346375217,1734921043264,-791.33,0.00019999,2]
[346375218,1734921043274,-746.3,0.00019999,2]
[346375219,1734921043284,-791.33,0.00019999,2]
[346375221,1734921043294,-791.33,0.00019999,2]
[346375224,1734921043304,-791.33,0.00019999,2]
[346375225,1734921043314,-791.44245394,0.00019999,2]
[346375226,1734921043324,-500.0,0.00019999,2]
[346375227,1734921043333,-651.77,0.00019999,2]
[346375228,1734921043342,-502.17855365,0.00019999,2]
[346375229,1734921043352,-504.03417187,0.00019999,2]
[346375230,1734921043362,-505.21664846,0.00019999,2]
[346375231,1734921043372,-660.25,0.00019999,2]
[346375232,1734921043382,-502.0512992,0.00019999,2]
[346375233,1734921043392,-1175.15,0.00019999,2]
[346375234,1734921043402,-500.0,0.00019999,2]
[346375235,1734921043412,-578.54,0.00019999,2]
[346375236,1734921043422,-502.80258462,0.00019999,2]
[346375237,1734921043432,-513.59233396,0.00019999,2]
[346375238,1734921043443,-507.62725629,0.00019999,2]
[346375239,1734921043453,-585.45,0.00019999,2]
[346375240,1734921043463,-1265.29,0.00019999,2]
[346375241,1734921043472,-968.49,0.00019999,2]
[346375242,1734921043482,-501.93969763,0.00019999,2]
[346375243,1734921043492,-682.26,0.00019999,2]
[346375244,1734921043501,-500.0,0.00019999,2]
[346375245,1734921043511,-2286.97,0.00019999,2]
[346375246,1734921043520,-94890.28329935,0.00019999,2]
[346375247,1734921043531,-1346.92,0.00019999,2]
[346375248,1734921043540,-500.0,0.00019999,2]
[346375249,1734921043553,-672.55,0.00019999,2]
[346375250,1734921043563,-457.05275369,0.00019999,2]
[346375251,1734921043572,-509.14167348,0.00019999,2]
[346375252,1734921043582,-7302.21,0.00019999,2]
[346375253,1734921043602,-502.86780974,0.00019999,2]
[346375254,1734921043612,-501.55125334,0.00019999,2]
[346375255,1734921043622,-2095.29,0.00019999,2]
[346375256,1734921043632,-2734.5,0.00019999,2]
[346375257,1734921043642,-521.84190073,0.00019999,2]
[346375258,1734921043652,-500.0,0.00019999,2]
[346375259,1734921043661,-442.1794169,0.00019999,2]
[346375260,1734921043671,-713.46,0.00019999,2]
[346375261,1734921043681,-625.78,0.00019999,2]
[346375262,1734921043690,-768.39,0.00019999,2]
[346375263,1734921043701,-501.36342469,0.00019999,2]
[346375264,1734921043710,-500.51,0.00019999,2]
[346375265,1734921043720,-799.29,0.00019999,2]
[346375266,1734921043730,-503.52071004,0.00019999,2]
[346375267,1734921043740,-500.0,0.00019999,2]
[346375268,1734921043750,-855.23,0.00019999,2]
[346375269,1734921043759,-995.23,0.00019999,2]
[346375270,1734921043768,-500.0,0.00019999,2]
[346375271,1734921043778,-608.82633709,0.00019999,2]
[346375272,1734921043787,-1462.05,0.00019999,2]
[346375273,1734921043796,-519.88436744,0.00019999,2]
[346375274,1734921043805,-794.06,0.00019999,2]
[346375275,1734921043815,-503.64,0.00019999,2]
[346375276,1734921043824,-1176.77,0.00019999,2]
[346375277,1734921043834,-630.97,0.00019999,2]
[346375278,1734921043846,-1839.24,0.00019999,2]
[346375279,1734921043856,-500.0,0.00019999,2]